bitfinex-derivatives/quotes_SOLF0:USTF0_20250124
["timestamp","ask_amount","ask_price","bid_price","bid_amount"]
[1737746361179,3.8169,261.92,261.89,0.02775589]
[1737746361477,9.09063224,261.94,261.89,0.02775589]
[1737746361781,0.02716264,261.94,261.93,3.8168]
[1737746367282,0.02716264,261.94,261.89,0.02775589]
[1737746367781,9.09063224,261.94,261.89,0.02775589]
[1737746368785,3.8172,261.9,261.89,0.02775589]
[1737746371482,9.09063224,261.94,261.89,0.02775589]
[1737746372683,3.8169,261.93,261.89,0.02775589]
[1737746372983,9.09063224,261.94,261.89,0.02775589]
[1737746374085,3.8172,261.9,261.89,0.02775589]
[1737746374483,3.8172,261.9,261.77,2.6004]
[1737746374484,9.0634696,261.9,261.77,2.6004]
[1737746374681,3.8179,261.86,261.77,2.6004]
[1737746374883,9.0634696,261.86,261.77,2.6004]
[1737746375484,3.8182,261.84,261.79,3.8188]
[1737746375691,3.84313029,261.84,261.79,3.8188]
[1737746376583,3.84313029,261.84,261.8,3.8187]
[1737746379189,0.02493029,261.84,261.78,3.8189]
[1737746379592,3.8183,261.83,261.79,3.8188]
[1737746382390,5.85174021,261.84,261.79,3.8188]
[1737746382597,0.02493029,261.84,261.8,5.82680992]
[1737746382993,0.02493029,261.84,261.83,3.8182]
[1737746385198,0.02493029,261.84,261.82,3.8184]
[1737746385997,0.02493029,261.84,261.77,1.3014]
[1737746386593,0.02493029,261.84,261.81,3.8185]
[1737746388597,0.02493029,261.84,261.77,1.1352]
[1737746388804,0.02493029,261.84,261.82,3.8184]
[1737746391408,0.02493029,261.84,261.56,9.1007259]
[1737746391603,0.02493029,261.84,261.65,22.67166085]
[1737746391903,0.02493029,261.84,261.66,1.262]
[1737746392104,9.1007259,261.85,261.66,1.262]
[1737746392308,0.02528665,261.78,261.67,1.2409]
[1737746392608,0.02528665,261.78,261.7,3.8201]
[1737746392807,0.02528665,261.78,261.67,1.2409]
[1737746393308,0.02528665,261.78,261.74,3.8194]
[1737746393508,0.02528665,261.78,261.68,1.3096]
[1737746394401,0.02528665,261.78,261.77,3.8191]
[1737746396408,0.02528665,261.78,261.76,3.8193]
[1737746396708,0.02528665,261.78,261.68,1.3096]
[1737746397108,0.02528665,261.78,261.75,3.8194]
[1737746399210,0.02528665,261.78,261.68,1.3096]
[1737746399509,9.1007259,261.89,261.69,9.1007259]
[1737746399915,3.8181,261.85,261.81,3.8185]
[1737746400214,9.1007259,261.89,261.69,9.1007259]
[1737746400417,3.8178,261.86,261.69,9.1007259]
[1737746400714,0.02457337,261.8,261.75,0.02717506]
[1737746401014,0.02457337,261.8,261.79,3.8188]
[1737746401216,3.8177,261.87,261.75,0.02717506]
[1737746401512,9.1007259,261.89,261.75,0.02717506]
[1737746401705,2.54,261.91,261.75,0.02717506]
[1737746401906,2.54,261.91,261.73,9.1007259]
[1737746402110,3.8175,261.89,261.78,3.8189]
[1737746402308,2.54,261.91,261.73,9.1007259]
[1737746402508,0.0252676,261.86,261.81,0.02561337]
[1737746402711,3.8430676,261.86,261.81,0.02561337]
[1737746403717,0.0252676,261.86,261.82,3.8184]
[1737746406019,0.0252676,261.86,261.83,3.8182]
[1737746406219,0.0252676,261.86,261.81,0.02561337]
[1737746406419,0.0252676,261.86,261.82,3.8183]
[1737746406822,5.82561137,261.84,261.81,0.02561337]
[1737746408221,9.64371137,261.84,261.81,0.02561337]
[1737746410026,5.82561137,261.84,261.81,0.02561337]
[1737746410821,9.64371137,261.84,261.81,0.02561337]
[1737746411218,5.82561137,261.84,261.81,0.02561337]
[1737746411420,5.82561137,261.84,261.71,5.82561137]
[1737746411622,0.0252676,261.86,261.7,0.16011]
[1737746411623,5.82561137,261.8,261.7,0.16011]
[1737746412622,3.84677681,261.78,261.72,3.84543442]
[1737746412825,0.02767681,261.78,261.72,3.84543442]
[1737746413222,0.02767681,261.78,261.72,0.02573442]
[1737746413922,0.02767681,261.78,261.74,5.82561137]
[1737746414117,0.02767681,261.78,261.77,5.82561137]
[1737746415121,0.02767681,261.78,261.77,9.64471137]
[1737746415518,0.02767681,261.78,261.77,3.8191]
[1737746415722,0.02767681,261.78,261.76,3.8193]
[1737746416621,0.02767681,261.78,261.72,0.02573442]
[1737746416926,0.02767681,261.78,261.77,3.8191]
[1737746423331,0.02767681,261.78,261.72,0.02573442]
[1737746423822,5.82561137,261.77,261.72,0.02573442]
[1737746424224,5.82561137,261.77,261.75,3.8193]
[1737746424831,3.8193,261.76,261.72,0.02573442]
[1737746425531,5.82561137,261.74,261.72,0.02573442]
[1737746426327,3.8197,261.73,261.72,0.02573442]
[1737746427624,5.82561137,261.74,261.62,1.2814]
[1737746427833,5.82561137,261.74,261.35,11.43]
[1737746427834,5.82561137,261.67,261.56,7.16521137]
[1737746428030,5.82561137,261.64,261.6,3.8215]
[1737746428227,5.82561137,261.64,261.56,1.3396]
[1737746428529,5.82561137,261.64,261.58,3.8218]
[1737746428725,0.02800614,261.63,261.58,3.8218]
[1737746429229,0.02800614,261.63,261.59,3.8217]
[1737746429524,0.02800614,261.63,261.54,1.2802]
[1737746430328,0.02800614,261.63,261.61,3.8214]
[1737746432226,0.02800614,261.63,261.54,1.2802]
[1737746433230,0.02800614,261.63,261.51,9.11755462]
[1737746433640,0.02800614,261.63,261.6,3.8216]
[1737746433933,0.02800614,261.63,261.51,9.11755462]
[1737746434131,0.02800614,261.63,261.59,3.8217]
[1737746435334,0.02800614,261.63,261.51,9.11755462]
[1737746436335,0.02800614,261.63,261.62,3.8213]
[1737746436534,9.11755462,261.69,261.55,9.11755462]
[1737746436735,0.02866988,261.65,261.55,9.11755462]
[1737746437035,0.02866988,261.65,261.56,1.2203]
[1737746438032,0.02866988,261.65,261.57,1.2852]
[1737746438331,0.02866988,261.65,261.64,3.821]
[1737746445140,10.34685462,261.77,261.73,3.8197]
[1737746445838,14.16605462,261.77,261.73,3.65925]
[1737746446039,14.16605462,261.77,261.59,9.11755462]
[1737746446238,14.16605462,261.77,261.71,3.8199]
[1737746446438,14.16605462,261.77,261.59,9.11755462]
[1737746446639,14.16605462,261.77,261.71,3.84907312]
[1737746446839,14.16605462,261.77,261.71,3.8199]
[1737746447040,14.19070201,261.77,261.71,3.84491154]
[1737746447236,14.19070201,261.77,261.72,3.8198]
[1737746447936,14.19070201,261.77,261.71,0.02501154]
[1737746448139,14.19070201,261.77,261.73,3.8197]
[1737746449141,14.19070201,261.77,261.74,3.8195]
[1737746451742,5.83078437,261.75,261.74,3.8195]
[1737746452145,5.83078437,261.75,261.73,3.8197]
[1737746453145,5.83078437,261.75,261.72,3.8198]
[1737746453945,5.83078437,261.75,261.71,0.02501154]
[1737746454145,5.83078437,261.75,261.73,3.8196]
[1737746455047,5.83078437,261.75,261.71,0.02501154]
[1737746455347,5.83078437,261.72,261.71,3.84491154]
[1737746456052,9.65058437,261.72,261.71,0.02501154]
[1737746457249,5.83078437,261.72,261.59,5.83078437]
[1737746457450,5.83078437,261.67,261.55,5.83078437]
[1737746458146,5.83078437,261.64,261.58,3.8218]
[1737746458345,5.85933612,261.64,261.58,3.8218]
[1737746459049,5.85933612,261.64,261.59,3.8217]
[1737746459351,0.02855175,261.64,261.55,5.83078437]
[1737746459548,5.83078437,261.67,261.64,3.8209]
[1737746460752,5.83078437,261.67,261.55,5.83078437]
[1737746461151,0.02596709,261.64,261.61,3.8213]
[1737746461546,0.02596709,261.64,261.55,5.83078437]
[1737746461749,0.02596709,261.64,261.63,3.8212]
[1737746463652,0.02596709,261.64,261.57,5.83078437]
[1737746464353,0.02596709,261.64,261.63,3.8212]
[1737746464748,0.02596709,261.64,261.57,5.83078437]
[1737746465146,0.02596709,261.64,261.57,3.822]
[1737746465447,5.85675146,261.64,261.54,5.83078437]
[1737746467152,5.85675146,261.64,261.6,3.8215]
[1737746467349,0.02596709,261.64,261.58,5.83078437]
[1737746468054,0.02596709,261.64,261.63,3.8212]
[1737746471269,5.83078437,261.7,261.61,5.83078437]
[1737746471569,9.65088437,261.7,261.66,3.8206]
[1737746474373,5.83078437,261.7,261.66,3.8206]
[1737746474569,5.83078437,261.7,261.65,0.02463509]
[1737746474871,5.83078437,261.7,261.68,3.8203]
[1737746475071,5.83078437,261.7,261.65,0.02463509]
[1737746475072,0.02552432,261.71,261.65,0.02463509]
[1737746475273,0.02552432,261.71,261.7,3.8201]
[1737746476770,5.83078437,261.82,261.7,5.83078437]
[1737746477073,5.83078437,261.82,261.73,5.83078437]
[1737746477575,5.83078437,261.82,261.74,1.2865]
[1737746477771,5.83078437,261.85,261.74,1.2865]
[1737746477973,0.02589224,261.81,261.76,5.83078437]
[1737746478373,0.02589224,261.81,261.8,3.8187]
[1737746480176,9.10181265,261.91,261.82,3.8183]
[1737746481379,0.02834327,261.89,261.84,0.0253069]
[1737746482880,3.84574327,261.89,261.84,0.0253069]
[1737746483377,3.8179,261.85,261.84,0.0253069]
[1737746483570,9.10181265,261.87,261.76,1.2924]
[1737746484077,3.8187,261.8,261.75,3.8193]
[1737746484278,9.10181265,261.83,261.65,9.10181265]
[1737746484680,3.8193,261.76,261.71,0.02537261]
[1737746484880,0.02658985,261.77,261.71,0.02537261]
[1737746485581,3.8195,261.75,261.71,0.02537261]
[1737746486380,3.84578985,261.77,261.73,0.16066]
[1737746488083,3.8193,261.76,261.73,0.16066]
[1737746488281,0.02658985,261.77,261.73,0.16066]
[1737746488784,3.8195,261.75,261.73,0.16066]
[1737746489189,3.8196,261.74,261.73,0.16066]
[1737746490786,0.02658985,261.77,261.73,0.16066]
[1737746491477,0.02658985,261.77,261.74,3.8194]
[1737746491680,0.02658985,261.77,261.73,0.16066]
[1737746492085,0.02658985,261.77,261.76,3.8193]
[1737746492588,8.985e-05,261.77,261.76,3.8193]
[1737746493787,12.91841265,261.95,261.88,3.8175]
[1737746494986,0.02455598,261.94,261.89,0.0287004]
[1737746496186,0.02455598,261.94,261.89,3.8460004]
[1737746496387,0.02455598,261.94,261.89,0.0287004]
[1737746496789,3.8168,261.93,261.89,0.0287004]
[1737746496989,0.02455598,261.94,261.89,0.0287004]
[1737746497385,0.02455598,261.94,261.92,3.8169]
[1737746497691,0.02455598,261.94,261.89,0.0287004]
[1737746498292,0.02455598,261.94,261.9,3.8171]
[1737746498491,0.02455598,261.94,261.89,0.0287004]
[1737746499384,3.84115598,261.94,261.89,0.0287004]
[1737746499591,0.02455598,261.94,261.89,0.0287004]
[1737746500788,9.10181265,261.9,261.76,49.61007846]
[1737746501391,9.10181265,261.9,261.79,3.8188]
[1737746501592,9.10181265,261.9,261.76,49.61007846]
[1737746502091,0.02674876,261.86,261.8,0.02750028]
[1737746504095,0.02674876,261.86,261.85,3.8179]
[1737746508598,9.10181265,261.98,261.81,10.42131265]
[1737746509493,3.8162,261.97,261.81,10.42131265]
[1737746509793,9.10181265,262.08,261.89,9.10181265]
[1737746509995,9.10181265,262.08,261.9,2.6264]
[1737746510297,9.10181265,262.08,261.93,9.10181265]
[1737746510496,9.10181265,262.08,261.9,2.6264]
[1737746510897,3.8148,262.07,261.95,3.8164]
[1737746511094,0.02462394,262.02,261.96,0.02879809]
[1737746511502,0.02462394,262.02,261.98,3.816]
[1737746512307,0.02462394,262.02,261.96,0.02879809]
[1737746515098,0.02462394,262.02,261.99,3.8159]
[1737746516805,0.02462394,262.02,261.96,0.02879809]
[1737746517002,0.02462394,262.02,262.0,3.8158]
[1737746517203,0.02462394,262.02,261.96,0.02879809]
[1737746517806,0.02462394,262.02,262.01,3.8156]
[1737746518507,0.02462394,262.02,262.0,3.8157]
[1737746519006,0.02462394,262.02,261.96,0.02879809]
[1737746520010,9.10181265,262.16,261.97,9.10181265]
[1737746520909,3.8142,262.11,262.05,3.815]
[1737746521313,3.84014785,262.11,262.05,3.84169592]
[1737746521609,3.84014785,262.11,262.05,0.02669592]
[1737746521610,0.02594785,262.11,262.05,0.02669592]
[1737746522006,0.02594785,262.11,262.1,3.8143]
[1737746524708,11.62161265,262.24,262.09,9.10181265]
[1737746525008,10.36511265,262.24,262.09,9.10181265]
[1737746525212,10.37731265,262.28,262.09,9.10181265]
[1737746525609,2.54,262.31,262.22,3.8125]
[1737746526014,3.83647163,262.29,262.24,0.02495769]
[1737746526211,0.02477163,262.29,262.24,3.83715769]
[1737746526408,0.02477163,262.29,262.24,0.02495769]
[1737746527210,9.10181265,262.25,262.15,1.3385]
[1737746527408,9.10181265,262.25,262.09,4.29230267]
[1737746528212,1.2269,262.28,262.09,4.29230267]
[1737746528416,9.10181265,262.29,262.12,9.10181265]
[1737746528615,0.02742711,262.2,262.14,0.02564567]
[1737746529116,2.711e-05,262.2,262.19,3.813]
[1737746529321,11.66181265,262.37,262.18,1.3195]
[1737746529619,3.8109,262.34,262.27,3.8118]
[1737746530015,5.0861,262.36,262.23,3.8124]
[1737746530211,1.2755,262.36,262.21,9.10181265]
[1737746530612,0.02822253,262.32,262.27,0.02775893]
[1737746531221,0.02822253,262.32,262.3,3.8113]
[1737746533126,0.02822253,262.32,262.27,0.02775893]
[1737746533821,3.83932253,262.32,262.27,0.02775893]
[1737746534021,0.02822253,262.32,262.27,0.02775893]
[1737746534221,3.83942253,262.32,262.27,0.02775893]
[1737746534423,0.02822253,262.32,262.27,0.02775893]
[1737746534823,0.02822253,262.32,262.27,3.83955893]
[1737746535019,0.02822253,262.32,262.27,0.02775893]
[1737746536326,3.8114,262.3,262.27,0.02775893]
[1737746536534,0.02822253,262.32,262.27,0.02775893]
[1737746538134,3.8113,262.31,262.27,0.02775893]
[1737746538431,0.02822253,262.32,262.27,0.02775893]
[1737746540131,0.02822253,262.32,262.29,3.8115]
[1737746542831,0.02822253,262.32,262.28,3.8116]
[1737746543038,9.13003518,262.32,262.27,0.02775893]
[1737746543240,0.02822253,262.32,262.27,0.02775893]
[1737746544439,3.8116,262.29,262.27,0.02775893]
[1737746545140,3.8114,262.31,262.27,0.02775893]
[1737746545440,0.02822253,262.32,262.27,0.02775893]
[1737746545639,0.02822253,262.32,262.27,3.83955893]
[1737746546041,0.02822253,262.32,262.27,0.02775893]
[1737746546640,3.8113,262.31,262.27,3.83955893]
[1737746547141,0.02822253,262.32,262.27,0.02775893]
[1737746547337,3.8117,262.28,262.27,0.02775893]
[1737746547536,9.10181265,262.28,262.18,0.1666]
[1737746547733,3.8121,262.25,262.18,0.1666]
[1737746547934,2.56,262.29,262.18,0.1666]
[1737746548238,2.56,262.29,262.25,3.8121]
[1737746548741,2.56,262.29,262.24,0.02565851]
[1737746549237,0.02455627,262.3,262.24,0.02565851]
[1737746549441,9.10181265,262.42,262.25,9.10181265]
[1737746549640,9.10181265,262.42,262.26,2.5947]
[1737746549844,3.8106,262.36,262.26,2.5947]
[1737746550544,3.8111,262.32,262.25,3.8121]
[1737746550844,0.0262439,262.34,262.28,0.02879463]
[1737746551341,9.10181265,262.33,262.28,0.02879463]
[1737746551537,3.8116,262.29,262.28,0.02879463]
[1737746552146,10.42271265,262.33,262.18,0.1666]
[1737746552344,3.8118,262.28,262.18,0.1666]
[1737746553247,0.02418241,262.26,262.2,0.0286881]
[1737746554143,0.02418241,262.26,262.21,3.8126]
[1737746554343,0.02418241,262.26,262.2,0.0286881]
[1737746554845,0.02418241,262.26,262.23,3.8124]
[1737746555347,3.8122,262.25,262.2,0.0286881]
[1737746555546,0.02418241,262.26,262.2,0.0286881]
[1737746555946,3.8124,262.23,262.2,0.0286881]
[1737746556448,0.02418241,262.26,262.2,0.0286881]
[1737746556742,3.8126,262.22,262.2,0.0286881]
[1737746557548,9.10181265,262.25,262.2,0.0286881]
[1737746557952,3.8125,262.23,262.2,0.0286881]
[1737746559045,3.8126,262.22,262.2,0.0286881]
[1737746559849,9.10181265,262.25,262.2,0.0286881]
[1737746560045,3.8123,262.24,262.2,0.0286881]
[1737746560849,3.8123,262.24,262.21,3.8127]
[1737746561059,0.02418241,262.26,262.2,0.0286881]
[1737746561751,0.02418241,262.26,262.25,3.8121]
[1737746562652,0.02418241,262.26,262.2,0.0286881]
[1737746563152,0.02418241,262.26,262.21,3.8127]
[1737746563353,0.02418241,262.26,262.2,0.0286881]
[1737746564352,3.8125,262.23,262.2,0.0286881]
[1737746565057,3.8122,262.25,262.2,0.0286881]
[1737746565249,0.02418241,262.26,262.2,0.0286881]
[1737746566350,3.8122,262.25,262.21,3.8126]
[1737746567050,3.8122,262.25,262.2,0.0286881]
[1737746567250,3.8122,262.25,262.22,3.8126]
[1737746567551,3.8125,262.23,262.2,0.0286881]
[1737746567853,9.10181265,262.25,262.2,0.0286881]
[1737746569351,0.02418241,262.26,262.2,0.0286881]
[1737746569950,3.83618241,262.26,262.22,3.8126]
[1737746570151,0.02418241,262.26,262.2,0.0286881]
[1737746570455,0.02418241,262.26,262.21,3.8126]
[1737746570657,0.02418241,262.26,262.2,0.0286881]
[1737746570952,0.02418241,262.26,262.24,3.8123]
[1737746571159,0.02418241,262.26,262.2,0.0286881]
[1737746572659,0.02418241,262.26,262.23,3.8124]
[1737746573058,0.02418241,262.26,262.2,0.0286881]
[1737746573259,0.02418241,262.26,262.22,3.8125]
[1737746573656,0.02418241,262.26,262.2,0.0286881]
[1737746573857,0.02418241,262.26,262.25,3.8121]
[1737746578863,0.02418241,262.26,262.2,0.0286881]
[1737746579164,0.02418241,262.26,262.22,3.8124]
[1737746579668,0.02418241,262.26,262.22,3.8122]
[1737746579960,0.02418241,262.26,262.2,0.0286881]
[1737746580859,0.02418241,262.26,262.25,3.8118]
[1737746581063,1.2542,262.37,262.2,9.13050075]
[1737746581263,9.10181265,262.41,262.24,9.10181265]
[1737746581565,9.10181265,262.41,262.25,1.2422]
[1737746582265,0.02707801,262.36,262.32,3.8106]
[1737746582658,0.02707801,262.36,262.3,0.02786899]
[1737746582962,0.02707801,262.36,262.34,3.8104]
[1737746583162,0.02707801,262.36,262.3,0.02786899]
[1737746583364,0.02707801,262.36,262.32,3.8107]
[1737746583964,0.02707801,262.36,262.33,3.8106]
[1737746584659,0.02707801,262.36,262.3,0.02786899]
[1737746584660,7.801e-05,262.36,262.35,3.8103]
[1737746586263,15.60609002,262.53,262.34,1.2794]
[1737746586558,15.60609002,262.53,262.47,3.8086]
[1737746587157,9.10181265,262.54,262.47,3.8086]
[1737746587568,0.02733139,262.53,262.48,3.8342175]
[1737746588068,0.02733139,262.53,262.48,0.0258175]
[1737746588670,3.83543139,262.53,262.48,0.0258175]
[1737746588866,0.02733139,262.53,262.48,0.0258175]
[1737746590472,0.02733139,262.53,262.39,3.81]
[1737746590771,9.10181265,262.5,262.39,3.81]
[1737746591070,3.8092,262.46,262.4,3.81]
[1737746591370,3.8092,262.46,262.35,1.2586]
[1737746591571,1.3233,262.56,262.35,1.2586]
[1737746591767,0.02619454,262.43,262.38,0.02662672]
[1737746591970,1.3233,262.56,262.35,1.2586]
[1737746592165,3.8082,262.53,262.46,3.8091]
[1737746592471,0.02930079,262.48,262.46,3.8091]
[1737746592671,3.8084,262.51,262.47,0.0288147]
[1737746592964,0.02796979,262.5,262.47,0.0288147]
[1737746593371,0.02796979,262.5,262.49,3.8087]
[1737746595469,0.02796979,262.5,262.47,3.8376147]
[1737746595671,0.02796979,262.5,262.47,0.0288147]
[1737746596672,0.02796979,262.5,262.48,3.8087]
[1737746597375,0.02796979,262.5,262.47,0.0288147]
[1737746597578,0.02796979,262.5,262.49,3.8087]
[1737746603679,0.02796979,262.5,262.49,9.60256883]
[1737746606578,0.02796979,262.5,262.47,0.0288147]
[1737746606977,0.02796979,262.5,262.49,5.79386883]
[1737746607577,0.02796979,262.5,262.49,9.60256883]
[1737746607772,1.2903,262.62,262.49,5.79386883]
[1737746607977,5.0647,262.64,262.56,5.79386883]
[1737746608178,5.0647,262.64,262.58,3.8072]
[1737746608377,5.0647,262.64,262.56,5.79386883]
[1737746608378,1.2582,262.64,262.56,5.79386883]
[1737746608575,5.79386883,262.66,262.6,3.807]
[1737746609082,5.82119049,262.66,262.6,3.83175136]
[1737746609283,5.82119049,262.66,262.6,0.02475136]
[1737746609679,9.62739049,262.66,262.6,0.02475136]
[1737746609878,0.02732166,262.66,262.6,0.02475136]
[1737746610385,0.02732166,262.66,262.63,3.8066]
[1737746611586,0.02732166,262.66,262.65,9.60016883]
[1737746614188,9.59846883,262.78,262.7,3.8056]
[1737746614490,5.79386883,262.81,262.7,5.79386883]
[1737746614790,3.8045,262.78,262.72,3.8052]
[1737746615284,3.83061279,262.78,262.72,3.82926547]
[1737746615788,0.02611279,262.78,262.72,0.02406547]
[1737746616390,3.8051,262.74,262.72,0.02406547]
[1737746616592,1.3406,262.77,262.61,2.5536]
[1737746616984,1.2409,262.76,262.61,2.5536]
[1737746617186,3.806,262.67,262.62,3.8067]
[1737746617686,3.83494985,262.67,262.62,3.83139021]
[1737746618692,3.8062,262.66,262.62,0.02469021]
[1737746620794,3.8062,262.66,262.62,0.02469021]
[1737746621995,0.02894985,262.67,262.63,3.8066]
[1737746622189,0.02894985,262.67,262.62,0.02469021]
[1737746624095,0.02894985,262.67,262.62,3.83149021]
[1737746626401,0.02894985,262.67,262.62,0.02469021]
[1737746626601,0.02894985,262.67,262.63,3.8066]
[1737746627597,0.02894985,262.67,262.62,0.02469021]
[1737746627798,0.02894985,262.67,262.64,3.8065]
[1737746630102,0.02894985,262.67,262.65,3.8063]
[1737746631002,0.02894985,262.67,262.64,3.8065]
[1737746632003,0.02894985,262.67,262.63,3.8066]
[1737746634205,0.02894985,262.67,262.64,3.8065]
[1737746637707,0.02894985,262.67,262.66,5.78676778]
[1737746639703,0.02894985,262.67,262.66,9.59296778]
[1737746646921,0.02894985,262.67,262.62,0.02469021]
[1737746647621,3.83504985,262.67,262.62,0.02469021]
[1737746648417,0.02894985,262.67,262.62,0.02469021]
[1737746648916,1.29304985,262.67,262.62,0.02469021]
[1737746650511,5.78676778,262.65,262.55,5.78676778]
[1737746651717,0.02553006,262.63,262.58,5.78676778]
[1737746654222,0.02553006,262.63,262.6,3.8069]
[1737746655521,0.02553006,262.63,262.57,0.02705109]
[1737746655822,3.807,262.61,262.57,0.02705109]
[1737746656119,3.807,262.61,262.57,3.83455109]
[1737746658820,5.78676778,262.62,262.52,5.78676778]
[1737746659016,5.78676778,262.56,262.44,5.78676778]
[1737746659216,5.78676778,262.53,262.44,5.78676778]
[1737746660118,0.02763858,262.51,262.49,3.8085]
[1737746660314,0.02763858,262.51,262.5,5.78676778]
[1737746660819,0.02763858,262.51,262.5,9.59526778]
[1737746662518,3.8071,262.6,262.54,3.8078]
[1737746663118,2.54,262.61,262.53,5.78676778]
[1737746663324,2.54,262.61,262.56,5.78676778]
[1737746663622,2.56684976,262.61,262.56,5.81254802]
[1737746663825,0.02684976,262.61,262.56,5.81254802]
[1737746664423,0.02684976,262.61,262.56,0.02578024]
[1737746664826,0.02684976,262.61,262.56,3.83338024]
[1737746665028,3.8072,262.59,262.56,0.02578024]
[1737746665228,0.02684976,262.61,262.56,0.02578024]
[1737746667728,3.83384976,262.61,262.57,3.8075]
[1737746668537,3.8071,262.6,262.56,3.83338024]
[1737746668828,5.78676778,262.59,262.56,0.02578024]
[1737746669722,3.8075,262.57,262.56,0.02578024]
[1737746669921,5.78676778,262.59,262.46,5.78676778]
[1737746670122,5.78676778,262.55,262.46,5.78676778]
[1737746670422,3.8081,262.53,262.46,5.78676778]
[1737746671129,1.3033,262.65,262.49,5.78676778]
[1737746671130,0.02627196,262.52,262.49,5.78676778]
[1737746671333,5.78676778,262.58,262.49,5.78676778]
[1737746671532,0.02868226,262.53,262.5,3.8085]
[1737746671733,0.02868226,262.53,262.48,0.02444826]
[1737746672233,0.02868226,262.53,262.52,3.8082]
[1737746686742,3.8062,262.64,262.58,3.8069]
[1737746686942,1.3033,262.65,262.58,3.8069]
[1737746687144,3.8055,262.69,262.6,3.8067]
[1737746687439,9.05250134,262.69,262.5,9.05250134]
[1737746687645,3.8069,262.59,262.52,3.8078]
[1737746687943,3.8069,262.59,262.57,0.02875312]
[1737746688447,0.0260089,262.62,262.57,0.02875312]
[1737746691643,0.0260089,262.62,262.61,3.8065]
[1737746698648,0.0260089,262.62,262.58,5.78978651]
[1737746698952,0.0260089,262.62,262.57,3.83575312]
[1737746698953,0.0260089,262.62,262.57,0.02875312]
[1737746699454,3.8067,262.6,262.57,0.02875312]
[1737746701546,0.0260089,262.62,262.59,3.8068]
[1737746701750,0.0260089,262.62,262.58,5.78978651]
[1737746702052,3.8324089,262.62,262.57,0.02875312]
[1737746702252,0.0260089,262.62,262.57,0.02875312]
[1737746703252,3.8066,262.61,262.57,3.83585312]
[1737746704052,0.0260089,262.62,262.57,0.02875312]
[1737746704453,0.0260089,262.62,262.59,3.8068]
[1737746704753,0.0260089,262.62,262.57,0.02875312]
[1737746705053,0.0260089,262.62,262.59,3.8067]
[1737746705857,0.0260089,262.62,262.57,3.83575312]
[1737746706355,3.8325089,262.62,262.57,3.83575312]
[1737746708356,0.0260089,262.62,262.57,3.83575312]
[1737746708555,3.8067,262.61,262.57,3.83575312]
[1737746709149,3.807,262.59,262.57,0.02875312]
[1737746710356,0.0260089,262.62,262.57,0.02875312]
[1737746710757,5.78978651,262.6,262.57,0.02875312]
[1737746711459,3.807,262.58,262.57,0.02875312]
[1737746719069,0.0260089,262.62,262.57,0.02875312]
[1737746719273,3.8066,262.61,262.57,0.02875312]
[1737746719769,0.0260089,262.62,262.58,3.8068]
[1737746719969,0.0260089,262.62,262.57,0.02875312]
[1737746721162,0.0260089,262.62,262.61,9.59628651]
[1737746725571,0.0260089,262.62,262.59,3.8068]
[1737746725768,0.0260089,262.62,262.57,0.02875312]
[1737746726071,5.81579541,262.62,262.57,0.02875312]
[1737746729572,3.8069,262.59,262.57,0.02875312]
[1737746732177,3.807,262.58,262.57,0.02875312]
[1737746742885,5.81579541,262.62,262.57,0.02875312]
[1737746743085,0.0260089,262.62,262.61,5.78978651]
[1737746744886,5.78978651,262.74,262.61,5.78978651]
[1737746745085,5.78978651,262.74,262.58,3.8659]
[1737746745086,7.06368651,262.77,262.66,5.78978651]
[1737746746088,0.02735309,262.74,262.69,0.0285845]
[1737746746686,3.805,262.72,262.69,0.0285845]
[1737746747086,5.8171396,262.74,262.69,0.0285845]
[1737746749095,3.8049,262.73,262.69,0.0285845]
[1737746750894,0.02735309,262.74,262.69,0.0285845]
[1737746751691,0.02735309,262.74,262.73,3.8048]
[1737746754297,5.78978651,262.8,262.77,3.8042]
[1737746754499,5.78978651,262.8,262.72,5.78978651]
[1737746755198,0.02821782,262.79,262.75,3.8045]
[1737746756797,0.02821782,262.79,262.74,3.8045]
[1737746757098,0.02821782,262.79,262.73,0.02433795]
[1737746757500,0.02821782,262.79,262.73,3.82903795]
[1737746758193,0.02821782,262.79,262.73,0.02433795]
[1737746758397,0.02821782,262.79,262.74,3.8047]
[1737746758802,5.78978651,262.77,262.73,0.02433795]
[1737746759201,3.8044,262.76,262.73,0.02433795]
[1737746759402,5.78978651,262.77,262.73,0.02433795]
[1737746760502,0.02821782,262.79,262.73,0.02433795]
[1737746761204,3.83211782,262.79,262.75,3.8045]
[1737746761397,0.02821782,262.79,262.73,0.02433795]
[1737746761706,0.02821782,262.79,262.77,3.8042]
[1737746762399,0.02821782,262.79,262.73,0.02433795]